bitfinex/quotes_BTCUSD_20241002
["timestamp","ask_amount","ask_price","bid_price","bid_amount"]
[1727836586360,0.00164,61741.0,61738.0,0.17320308]
[1727836586581,0.00164,61741.0,61740.0,0.129575]
[1727836587217,0.00164,61741.0,61740.0,0.13281415]
[1727836587636,0.00164,61741.0,61738.0,0.56293808]
[1727836587848,0.00164,61741.0,61739.0,0.129577]
[1727836588078,0.00164,61741.0,61740.0,0.002]
[1727836588743,0.00164,61741.0,61738.0,0.30378208]
[1727836588976,0.131213,61741.0,61738.0,0.17420308]
[1727836589178,0.00164,61741.0,61738.0,0.17420308]
[1727836589412,0.00164,61741.0,61738.0,0.29878208]
[1727836589626,0.00164,61741.0,61740.0,0.003]
[1727836590084,0.00164,61741.0,61739.0,0.131577]
[1727836590568,0.00164,61741.0,61740.0,0.129575]
[1727836590790,0.02703437,61741.0,61740.0,0.129575]
[1727836591244,0.02803437,61741.0,61740.0,0.129575]
[1727836591482,0.02703437,61741.0,61740.0,0.129575]
[1727836591702,0.02703437,61741.0,61740.0,0.131575]
[1727836592311,0.02703437,61741.0,61740.0,0.13781404]
[1727836592520,0.02703437,61741.0,61740.0,0.134575]
[1727836593988,0.00164,61741.0,61740.0,0.134575]
[1727836597251,0.00164,61741.0,61740.0,0.005]
[1727836597458,0.04466169,61741.0,61740.0,0.005]
[1727836597671,0.02703414,61741.0,61740.0,0.005]
[1727836597877,0.04466169,61741.0,61740.0,0.005]
[1727836598056,0.17423469,61741.0,61740.0,0.005]
[1727836598516,0.14884055,61741.0,61740.0,0.005]
[1727836599126,0.01926755,61741.0,61738.0,0.16920308]
[1727836599362,0.02026755,61741.0,61738.0,0.16920308]
[1727836599541,0.00264,61741.0,61739.0,0.129577]
[1727836600810,0.00164,61741.0,61739.0,0.129577]
[1727836601076,0.00264,61741.0,61739.0,0.129577]
[1727836601303,0.00264,61741.0,61733.0,0.24296023]
[1727836601304,0.179,61740.0,61728.0,0.16920308]
[1727836601502,0.179,61740.0,61731.0,0.24296023]
[1727836601503,0.129588,61734.0,61731.0,0.24296023]
[1727836601948,0.129588,61734.0,61730.0,0.129595]
[1727836601949,0.01760306,61733.0,61730.0,0.129595]
[1727836602618,0.01760306,61733.0,61724.0,0.259215]
[1727836602857,0.438185,61732.0,61724.0,0.259215]
[1727836603088,0.1296,61729.0,61724.0,0.37256823]
[1727836603520,0.01760306,61728.0,61725.0,0.129606]
[1727836604390,0.01760306,61728.0,61726.0,0.129604]
[1727836604809,0.438185,61732.0,61725.0,0.008]
[1727836604810,0.129605,61726.0,61725.0,0.008]
[1727836605495,0.14715148,61726.0,61725.0,0.004]
[1727836605713,0.01754648,61726.0,61725.0,0.004]
[1727836605920,0.17255079,61726.0,61723.0,0.12961]
[1727836606130,0.17255079,61726.0,61720.0,0.26005568]
[1727836606131,0.02539931,61726.0,61724.0,0.129608]
[1727836606338,0.01754648,61725.0,61723.0,0.259219]
[1727836606544,0.01754648,61725.0,61724.0,0.129607]
[1727836606758,0.02539931,61726.0,61724.0,0.129607]
[1727836606964,0.01754648,61725.0,61720.0,0.00082268]
[1727836607174,0.01754648,61725.0,61723.0,0.129611]
[1727836607781,0.01754648,61725.0,61722.0,0.259226]
[1727836608204,0.01754648,61725.0,61724.0,0.139609]
[1727836608415,0.01754648,61725.0,61724.0,0.134609]
[1727836608624,0.01754648,61725.0,61720.0,0.00082268]
[1727836608625,0.0782,61724.0,61723.0,0.006]
[1727836608835,0.207809,61724.0,61723.0,0.006]
[1727836609046,0.22511737,61724.0,61722.0,0.006]
[1727836609255,0.22511737,61724.0,61722.0,0.012]
[1727836609693,0.09550837,61724.0,61722.0,0.012]
[1727836609906,0.09550837,61724.0,61723.0,0.129611]
[1727836610128,0.09550837,61724.0,61722.0,0.006]
[1727836610585,0.0792,61724.0,61723.0,0.007]
[1727836610795,0.0802,61724.0,61723.0,0.014]
[1727836611001,0.09650837,61724.0,61723.0,0.007]
[1727836611208,0.22611737,61724.0,61722.0,0.007]
[1727836611426,0.22611737,61724.0,61722.0,0.014]
[1727836611427,0.22711737,61724.0,61722.0,0.014]
[1727836611636,0.22611737,61724.0,61722.0,0.007]
[1727836611891,0.09550837,61724.0,61721.0,0.129613]
[1727836612144,0.09750837,61724.0,61723.0,0.014]
[1727836612361,0.01830837,61724.0,61723.0,0.136611]
[1727836612785,0.001,61724.0,61723.0,0.1398511]
[1727836613249,0.01729694,61724.0,61723.0,0.1328511]
[1727836613510,0.24296023,61730.0,61729.0,0.129598]
[1727836613733,0.24296023,61730.0,61729.0,0.29880108]
[1727836613939,0.0995,61732.0,61731.0,0.129594]
[1727836614152,0.0782,61736.0,61732.0,0.259184]
[1727836614371,0.0782,61736.0,61733.0,0.16920308]
[1727836614372,0.207784,61736.0,61733.0,0.16920308]
[1727836614810,0.129587,61735.0,61733.0,0.16920308]
[1727836615263,0.129588,61734.0,61733.0,0.16920308]
[1727836616190,0.15498542,61734.0,61733.0,0.16920308]
[1727836616437,0.129588,61734.0,61732.0,0.001]
[1727836616869,0.129588,61734.0,61731.0,0.16920308]
[1727836617310,0.12959,61733.0,61731.0,0.16920308]
[1727836618120,0.003,61734.0,61731.0,0.42838908]
[1727836618374,0.004,61734.0,61731.0,0.29879608]
[1727836618595,0.004,61734.0,61732.0,0.129591]
[1727836618596,0.003,61734.0,61732.0,0.129591]
[1727836618808,0.003,61734.0,61731.0,0.16920308]
[1727836619022,0.003,61734.0,61731.0,0.17320308]
[1727836619228,0.02839736,61734.0,61733.0,0.12959]
[1727836619466,0.02839736,61734.0,61731.0,0.17320308]
[1727836619674,0.02839736,61734.0,61732.0,0.129591]
[1727836619880,0.02539736,61734.0,61731.0,0.17320308]
[1727836620095,0.02539736,61734.0,61733.0,0.12959]
[1727836620305,0.02539736,61734.0,61731.0,0.17720308]
[1727836620515,0.02539736,61734.0,61731.0,0.30879508]
[1727836620753,0.02539736,61734.0,61733.0,0.12959]
[1727836621415,0.0426943,61734.0,61733.0,0.12959]
[1727836622270,0.0426943,61734.0,61733.0,0.13159]
[1727836623365,0.0426943,61734.0,61733.0,0.13359]
[1727836623799,0.1391943,61734.0,61733.0,0.004]
[1727836624041,0.32158494,61734.0,61733.0,0.004]
[1727836625020,0.32133987,61734.0,61733.0,0.004]
[1727836625312,0.129615,61721.0,61720.0,0.00082268]
[1727836625585,1.124943,61721.0,61720.0,0.00082268]
[1727836625848,0.88377695,61721.0,61720.0,0.00082268]
[1727836626361,0.37020763,61721.0,61720.0,0.00082268]
[1727836626371,0.3216509,61721.0,61720.0,0.00082268]
[1727836627636,0.3286509,61721.0,61720.0,0.00182268]
[1727836628345,0.3216509,61721.0,61720.0,0.00082268]
[1727836628553,0.3346509,61721.0,61720.0,0.00282268]
[1727836628761,0.3276509,61721.0,61720.0,0.00182268]
[1727836630005,0.3216509,61721.0,61720.0,0.00082268]
[1727836630263,0.3276509,61721.0,61720.0,0.00082268]
[1727836630782,0.0293359,61721.0,61720.0,0.00082268]
[1727836631319,0.0293359,61721.0,61720.0,0.13043968]
[1727836631517,0.0293359,61721.0,61720.0,0.00082268]
[1727836631760,0.1589509,61721.0,61720.0,0.00082268]
[1727836632013,0.0293359,61721.0,61720.0,0.00082268]
[1727836635657,0.0293359,61721.0,61720.0,0.13043968]
[1727836636416,0.0173359,61721.0,61720.0,0.13043968]
[1727836636645,0.04773697,61721.0,61720.0,0.13043968]
[1727836636856,0.03540107,61721.0,61720.0,0.13043968]
[1727836637059,0.042466,61721.0,61720.0,0.13043968]
[1727836637268,0.043466,61721.0,61720.0,0.13043968]
[1727836637474,0.043466,61721.0,61720.0,0.13343968]
[1727836638138,0.01806493,61721.0,61720.0,0.13425868]
[1727836638585,0.001,61721.0,61720.0,0.13425868]
[1727836640876,0.00164,61734.0,61733.0,0.12959]
[1727836641114,0.00164,61734.0,61733.0,0.30203254]
[1727836641365,0.02703539,61734.0,61733.0,0.30203254]
[1727836641648,0.02703539,61734.0,61733.0,0.29879308]
[1727836642135,0.02703539,61734.0,61733.0,0.32179308]
[1727836642371,0.00164,61734.0,61733.0,0.32179308]
[1727836643069,0.00164,61734.0,61733.0,0.42179308]
[1727836643283,0.00264,61734.0,61733.0,0.42879308]
[1727836643740,0.00264,61734.0,61733.0,0.42179308]
[1727836644217,0.00264,61734.0,61733.0,0.42879308]
[1727836644434,0.00364,61734.0,61733.0,0.42879308]
[1727836645557,0.00364,61734.0,61733.0,0.42179308]
[1727836645558,0.00264,61734.0,61733.0,0.42179308]
[1727836646006,0.00364,61734.0,61733.0,0.42879308]
[1727836650364,0.00364,61734.0,61733.0,0.40579308]
[1727836650613,0.00364,61734.0,61733.0,0.13659]
[1727836650841,0.0183844,61734.0,61733.0,0.13659]
[1727836651767,0.0183844,61734.0,61733.0,0.30579308]
[1727836652545,0.00364,61734.0,61733.0,0.30579308]
[1727836653796,0.00364,61734.0,61733.0,0.30903246]
[1727836654034,0.00364,61734.0,61733.0,0.30579308]
[1727836654994,0.00364,61734.0,61733.0,0.33203246]
[1727836655229,0.00364,61734.0,61733.0,0.32879308]
[1727836655775,0.00364,61734.0,61733.0,0.91634776]
[1727836655991,0.00164,61741.0,61740.0,0.32177808]
[1727836656720,0.00164,61741.0,61740.0,0.58647253]
[1727836656934,0.00164,61741.0,61740.0,0.66637253]
[1727836657579,0.00264,61741.0,61740.0,0.66637253]
[1727836658013,0.00264,61741.0,61740.0,0.67137253]
[1727836658237,0.000819,61759.0,61751.0,0.005]
[1727836658460,0.000819,61759.0,61751.0,0.59468768]
[1727836658679,0.01311597,61752.0,61751.0,0.59144953]
[1727836658896,0.000819,61752.0,61751.0,0.59144953]
[1727836660002,0.001819,61752.0,61751.0,0.60044953]
[1727836660214,0.002819,61752.0,61751.0,0.60544953]
[1727836660622,0.002819,61752.0,61751.0,0.60744953]
[1727836661292,0.002819,61752.0,61751.0,0.60544953]
[1727836661726,0.002819,61752.0,61751.0,0.60744953]
[1727836662189,0.000819,61759.0,61758.0,0.42174008]
[1727836662410,0.00612,61771.0,61765.0,0.252523]
[1727836662651,0.24296023,61777.0,61773.0,0.023]
[1727836662858,0.24296023,61777.0,61776.0,0.42170308]
[1727836663069,0.0002,61779.0,61778.0,0.129495]
[1727836663934,0.0002,61779.0,61778.0,0.152495]
[1727836664592,0.0012,61779.0,61778.0,0.164495]
[1727836665668,0.0012,61779.0,61778.0,0.177495]
[1727836666507,0.0012,61779.0,61778.0,0.1807318]
[1727836666508,0.02657368,61779.0,61778.0,0.1807318]
[1727836666945,0.02557368,61779.0,61778.0,0.1687318]
[1727836667168,0.02657368,61779.0,61778.0,0.1827318]
[1727836667405,0.02657368,61779.0,61778.0,0.1687318]
[1727836667621,0.02657368,61779.0,61778.0,0.165495]
[1727836667832,0.02757368,61779.0,61778.0,0.179495]
[1727836668053,0.02757368,61779.0,61778.0,0.166495]
[1727836668271,0.02757368,61779.0,61778.0,0.33442615]
[1727836668481,0.02757368,61779.0,61778.0,0.44918945]
[1727836668914,0.02757368,61779.0,61778.0,0.43618945]
[1727836669131,0.02557368,61779.0,61778.0,0.43618945]
[1727836669372,0.02657368,61779.0,61778.0,0.45018945]
[1727836669580,0.02557368,61779.0,61778.0,0.42218945]
[1727836670000,0.02657368,61779.0,61778.0,0.45018945]
[1727836670208,0.02557368,61779.0,61778.0,0.43618945]
[1727836670629,0.02657368,61779.0,61778.0,0.45018945]
[1727836670834,0.02557368,61779.0,61778.0,0.43618945]
[1727836671668,0.02557368,61779.0,61778.0,0.42218945]
[1727836671959,0.0002,61779.0,61778.0,0.42218945]
[1727836672172,0.0002,61779.0,61778.0,0.44918945]
[1727836672386,0.0002,61779.0,61778.0,0.43618945]
[1727836672599,0.0002,61779.0,61778.0,0.280495]
[1727836674280,0.001019,61779.0,61778.0,0.280495]
[1727836675316,0.02639264,61779.0,61778.0,0.280495]
[1727836676393,0.001019,61779.0,61778.0,0.280495]
[1727836679226,0.001019,61779.0,61778.0,0.44842622]
[1727836679439,0.001019,61779.0,61778.0,0.44518945]
[1727836681239,0.001019,61779.0,61778.0,0.44941696]
[1727836681461,0.001019,61779.0,61778.0,0.43118945]
[1727836681891,0.001019,61779.0,61778.0,0.41718945]
[1727836682162,0.002019,61779.0,61778.0,0.44518945]
[1727836682678,0.002019,61779.0,61778.0,0.43118945]
[1727836682932,0.002019,61779.0,61778.0,0.293495]
[1727836682933,0.003019,61779.0,61778.0,0.293495]
[1727836686038,0.003019,61779.0,61778.0,0.31081424]
[1727836686500,0.0283931,61779.0,61778.0,0.31081424]
[1727836688593,0.0283931,61779.0,61778.0,0.33858717]
[1727836688823,0.0283931,61779.0,61778.0,0.33858712]
[1727836691819,0.24296023,61802.0,61788.0,0.005]
[1727836692039,0.24296023,61794.0,61793.0,0.252464]
[1727836692284,0.00082,61803.0,61795.0,0.43116]
[1727836692497,0.2458488,61801.0,61795.0,0.64606705]
[1727836692707,0.00288857,61801.0,61795.0,0.64606705]
[1727836692928,0.00288857,61801.0,61795.0,0.54986705]
[1727836693360,0.00288857,61801.0,61795.0,0.77018573]
[1727836693572,0.00264,61796.0,61795.0,0.73307013]
[1727836693995,0.00164,61796.0,61795.0,0.71907013]
[1727836694424,0.00164,61796.0,61795.0,0.69124699]
[1727836694640,0.00164,61796.0,61795.0,0.62274699]
[1727836695331,0.18582302,61810.0,61805.0,0.16920308]
[1727836695552,0.18582302,61810.0,61806.0,0.01738946]
[1727836695766,0.12942,61815.0,61806.0,0.25887]
[1727836695973,0.02449088,61816.0,61805.0,0.16920308]
[1727836696160,0.129427,61811.0,61805.0,0.16920308]
[1727836696609,0.129424,61812.0,61805.0,0.29864108]
[1727836696822,0.129428,61810.0,61806.0,0.008]
[1727836697244,0.129435,61807.0,61805.0,0.007]
[1727836697449,0.0786,61806.0,61805.0,0.007]
[1727836697671,0.08864248,61806.0,61802.0,0.24296023]
[1727836697900,0.08864248,61806.0,61805.0,0.005]
[1727836698309,0.08864248,61806.0,61804.0,0.12944]
[1727836698518,0.08864248,61806.0,61805.0,0.007]
[1727836698731,0.08864248,61806.0,61805.0,0.018]
[1727836698937,0.08864248,61806.0,61805.0,0.011]
[1727836699160,0.08864248,61806.0,61805.0,0.023]
[1727836699363,0.08864248,61806.0,61805.0,0.011]
[1727836699574,0.21807948,61806.0,61805.0,0.011]
[1727836699792,0.21807948,61806.0,61805.0,0.017]
[1727836700034,0.21807948,61806.0,61805.0,0.006]
[1727836701655,0.21807948,61806.0,61805.0,0.011]
[1727836701885,0.08864248,61806.0,61805.0,0.011]
[1727836702426,0.21807948,61806.0,61805.0,0.005]
[1727836702604,0.08864248,61806.0,61805.0,0.005]
[1727836703022,0.08864248,61806.0,61803.0,0.129442]
[1727836703230,0.12944,61805.0,61801.0,0.129446]
[1727836703446,0.01000087,61805.0,61798.0,0.258906]
[1727836703662,0.129442,61804.0,61800.0,0.129448]
[1727836703875,0.13944157,61804.0,61800.0,0.129448]
[1727836704084,0.00999957,61804.0,61801.0,0.129446]
[1727836704507,0.00999957,61804.0,61799.0,0.12945]
[1727836704508,0.129442,61804.0,61799.0,0.12945]
[1727836704727,0.00999615,61803.0,61795.0,0.04038635]
[1727836704941,0.00999615,61803.0,61789.0,0.258942]
[1727836704942,0.00999615,61803.0,61801.0,0.001]
[1727836705177,0.0786,61809.0,61802.0,0.25889]
[1727836705611,0.0786,61809.0,61801.0,0.16920308]
[1727836705612,0.0786,61809.0,61807.0,0.29863708]
[1727836705821,0.0786,61809.0,61807.0,0.129434]
[1727836706056,0.0786,61809.0,61806.0,0.129436]
[1727836706275,0.0786,61809.0,61807.0,0.129434]
[1727836707099,0.0786,61809.0,61806.0,0.129437]
[1727836707301,0.0786,61809.0,61805.0,0.258876]
[1727836707505,0.0786,61809.0,61806.0,0.129436]
[1727836707947,0.0786,61809.0,61804.0,0.258881]
[1727836708157,0.0786,61809.0,61803.0,0.16920308]
[1727836708366,0.0786,61809.0,61807.0,0.001]
[1727836708976,0.10396525,61809.0,61806.0,0.129436]
[1727836709182,0.10396525,61809.0,61806.0,0.130436]
[1727836709386,0.10396525,61809.0,61807.0,0.129434]
[1727836709809,0.10396525,61809.0,61807.0,0.130434]
[1727836710061,0.10396525,61809.0,61807.0,0.129434]
[1727836710488,0.10396525,61809.0,61805.0,0.258878]
[1727836710489,0.10396525,61809.0,61806.0,0.129436]
[1727836711551,0.10396525,61809.0,61806.0,0.130436]
[1727836711988,0.0786,61809.0,61806.0,0.130436]
[1727836712412,0.0786,61809.0,61806.0,0.001]
[1727836712413,0.129435,61807.0,61806.0,0.001]
[1727836712639,0.466895,61809.0,61806.0,0.001]
[1727836712853,0.466895,61809.0,61803.0,0.258886]
[1727836712854,0.208032,61809.0,61805.0,0.129438]
[1727836713067,0.258853,61811.0,61805.0,0.129438]
[1727836713068,0.062604,61811.0,61805.0,0.129438]
[1727836713294,0.129432,61809.0,61806.0,0.001]
[1727836713506,0.129432,61809.0,61805.0,0.129438]
[1727836713981,0.258842,61814.0,61804.0,0.50184023]
[1727836714189,0.129424,61813.0,61805.0,0.258875]
[1727836714399,0.129425,61812.0,61808.0,0.129431]
[1727836714616,0.258842,61814.0,61809.0,0.12943]
[1727836714617,0.129421,61814.0,61809.0,0.12943]
[1727836714852,0.0160592,61824.0,61809.0,0.12943]
[1727836714853,0.0160592,61824.0,61815.0,0.229418]
[1727836715071,0.1454592,61824.0,61815.0,0.229418]
[1727836715274,0.1454582,61824.0,61815.0,0.229418]
[1727836715490,0.04985186,61816.0,61815.0,0.229418]
[1727836716354,0.02449088,61816.0,61815.0,0.229418]
[1727836716806,0.02449088,61816.0,61815.0,0.231418]
[1727836717015,0.02449088,61816.0,61815.0,0.232418]
[1727836719158,0.02449088,61816.0,61815.0,0.23565304]
[1727836719582,0.02449088,61816.0,61815.0,0.232418]
[1727836719834,0.02449088,61816.0,61815.0,0.23565306]
[1727836721815,0.02449088,61816.0,61815.0,0.232418]
[1727836722247,0.02449088,61816.0,61815.0,0.003]
[1727836722467,0.03466523,61816.0,61815.0,0.132418]
[1727836722683,0.11306523,61816.0,61815.0,0.003]
[1727836722925,0.11388423,61816.0,61814.0,0.12942]
[1727836723134,0.11388423,61816.0,61811.0,0.24296023]
[1727836723135,0.24330023,61816.0,61815.0,0.003]
[1727836723564,0.23830023,61816.0,61815.0,0.003]
[1727836724265,0.23830023,61816.0,61815.0,0.002]
[1727836725138,0.10888423,61816.0,61807.0,0.131072]
[1727836725351,0.129425,61812.0,61810.0,0.24296023]
[1727836725792,0.01008018,61811.0,61808.0,0.129433]
[1727836726011,0.01008018,61811.0,61810.0,0.54159131]
[1727836726227,0.04567386,61816.0,61815.0,0.129418]
[1727836727366,0.04567386,61816.0,61815.0,0.29411245]
[1727836728039,0.04567386,61816.0,61815.0,0.39811245]
[1727836728917,0.04567386,61816.0,61815.0,0.41011245]
[1727836729133,0.04567386,61816.0,61815.0,0.40611245]
[1727836729355,0.04567386,61816.0,61815.0,0.41711245]
[1727836731869,0.02030988,61816.0,61815.0,0.41711245]
[1727836740547,0.02030988,61816.0,61815.0,0.023]
[1727836740780,0.14972588,61816.0,61815.0,0.023]
[1727836740988,0.02030988,61816.0,61815.0,0.023]
[1727836741204,0.03049778,61816.0,61815.0,0.023]
[1727836741414,0.03049778,61816.0,61815.0,0.152418]
[1727836741621,0.02030988,61816.0,61815.0,0.13265325]
[1727836741832,0.02030988,61816.0,61815.0,0.2973477]
[1727836742046,0.02030988,61816.0,61815.0,0.30211245]
[1727836742469,0.02030988,61816.0,61815.0,0.39611245]
[1727836742683,0.02030988,61816.0,61815.0,0.39711245]
[1727836742894,0.02030988,61816.0,61815.0,0.39511245]
[1727836743521,0.02030988,61816.0,61815.0,0.39411245]
[1727836744067,0.02030988,61816.0,61815.0,0.39611245]
[1727836744267,0.02030988,61816.0,61815.0,0.129418]
[1727836744496,0.0456705,61816.0,61815.0,0.129418]
[1727836744754,0.0456705,61816.0,61815.0,0.38061245]
[1727836744951,0.0456705,61816.0,61815.0,0.48161245]
[1727836745368,0.0456705,61816.0,61815.0,0.48061245]
[1727836745491,0.02030988,61816.0,61815.0,0.48061245]
[1727836745710,0.02030988,61816.0,61815.0,0.48561245]
[1727836745920,0.02030988,61816.0,61815.0,0.47861245]
[1727836746167,0.02030988,61816.0,61815.0,0.47361245]
[1727836746800,0.02030988,61816.0,61815.0,0.48461245]
[1727836747221,0.02030988,61816.0,61815.0,0.49761245]
[1727836747681,0.02030988,61816.0,61815.0,0.49925045]
[1727836747886,0.02030988,61816.0,61815.0,0.51325045]
[1727836748140,0.02030988,61816.0,61815.0,0.48625045]
[1727836748554,0.02030988,61816.0,61815.0,0.50025045]
[1727836748758,0.02030988,61816.0,61815.0,0.48925045]
[1727836748970,0.02030988,61816.0,61815.0,0.50125045]
[1727836749525,0.0002,61819.0,61818.0,0.234412]
[1727836749734,0.0002,61819.0,61818.0,0.40234083]
[1727836749942,0.0002,61819.0,61818.0,0.39910645]
[1727836751004,0.0002,61819.0,61818.0,0.44098745]
[1727836751212,0.0002,61819.0,61818.0,0.41310645]
[1727836751421,0.0002,61819.0,61818.0,0.44098745]
[1727836751617,0.0002,61819.0,61818.0,0.41310645]
[1727836752294,0.0002,61819.0,61818.0,0.41210645]
[1727836752706,0.0002,61819.0,61818.0,0.40110645]
[1727836753150,0.0002,61819.0,61818.0,0.41510645]
[1727836753470,0.0002,61819.0,61818.0,0.41310645]
[1727836753678,0.0002,61819.0,61818.0,0.42710645]
[1727836753894,0.0002,61819.0,61818.0,0.41310645]
[1727836754517,0.0002,61819.0,61818.0,0.67006668]
[1727836754723,0.0002,61819.0,61818.0,0.42710645]
[1727836755345,0.0002,61819.0,61818.0,0.44535421]
[1727836755553,0.0002,61819.0,61818.0,0.43135421]
[1727836755765,0.0002,61819.0,61818.0,0.61455729]
[1727836756812,0.0002,61819.0,61818.0,0.58651346]
[1727836757458,0.0002,61819.0,61818.0,0.60051346]
[1727836757662,0.0002,61819.0,61818.0,0.59630953]
[1727836757876,0.0002,61819.0,61818.0,0.58230953]
[1727836758303,0.0002,61819.0,61818.0,0.59630953]
[1727836758771,0.0002,61819.0,61818.0,0.58230953]
[1727836759207,0.0002,61819.0,61818.0,0.59630953]
[1727836760075,0.0002,61819.0,61818.0,0.83926976]
[1727836760289,0.0160592,61824.0,61823.0,0.134401]
[1727836760504,0.0160592,61824.0,61823.0,0.57153277]
[1727836760723,0.0160592,61824.0,61823.0,0.56829853]
[1727836761570,0.0160592,61824.0,61823.0,0.59629853]
[1727836761783,0.0160592,61824.0,61823.0,0.90813234]
[1727836762456,0.0160592,61824.0,61823.0,0.69656249]
[1727836762673,0.00420394,61832.0,61831.0,0.40358708]
[1727836762884,0.00420394,61832.0,61831.0,0.65048153]
[1727836763327,0.00420394,61832.0,61831.0,0.56828153]
[1727836764455,0.00420394,61832.0,61831.0,0.58128153]
[1727836764669,0.00420394,61832.0,61831.0,0.56828153]
[1727836764880,0.00420394,61832.0,61831.0,0.59328153]
[1727836765167,0.00420394,61832.0,61831.0,0.57928153]
[1727836765379,0.00420394,61832.0,61831.0,0.56828153]
[1727836765583,0.00420394,61832.0,61831.0,0.58228153]
[1727836765845,0.00420394,61832.0,61831.0,0.59628153]
[1727836766744,0.00420394,61832.0,61831.0,0.58228153]
[1727836767613,0.00420394,61832.0,61831.0,0.59628153]
[1727836768038,0.00420394,61832.0,61831.0,0.56828153]
[1727836768296,0.00420394,61832.0,61831.0,0.59628153]
[1727836770062,0.00420394,61832.0,61831.0,0.257384]
[1727836770931,0.17440394,61832.0,61831.0,0.028]
[1727836771133,0.17440394,61832.0,61820.0,0.005]
[1727836771134,0.17440394,61832.0,61830.0,0.129386]
[1727836771348,0.18338617,61832.0,61831.0,0.024]
[1727836771546,0.48197125,61832.0,61831.0,0.011]
[1727836771805,0.48197125,61832.0,61818.0,0.24296023]
[1727836771806,0.1702,61823.0,61819.0,0.129408]
[1727836772031,0.299602,61823.0,61819.0,0.129408]
[1727836772254,0.00871025,61822.0,61819.0,0.129409]
[1727836772694,0.00871025,61822.0,61815.0,0.001638]
[1727836773127,0.12941,61819.0,61815.0,0.001638]
[1727836773342,0.16920308,61820.0,61815.0,0.001638]
[1727836773600,0.129416,61816.0,61815.0,0.001638]
[1727836774253,0.13812625,61816.0,61815.0,0.001638]
[1727836774507,0.00871025,61816.0,61815.0,0.131056]
[1727836774682,0.13812625,61816.0,61815.0,0.001638]
[1727836774915,0.15477803,61816.0,61815.0,0.001638]
[1727836775127,0.16348828,61816.0,61815.0,0.001638]
[1727836775353,0.16448828,61816.0,61815.0,0.001638]
[1727836777942,0.00971025,61816.0,61815.0,0.001638]
[1727836778149,0.13912625,61816.0,61815.0,0.001638]
[1727836778593,0.00971025,61816.0,61815.0,0.001638]
[1727836778768,0.13912625,61816.0,61815.0,0.001638]
[1727836779201,0.00971025,61816.0,61815.0,0.001638]
[1727836779533,0.13912625,61816.0,61815.0,0.001638]
[1727836779944,0.13812625,61816.0,61815.0,0.001638]
[1727836781302,0.16348758,61816.0,61815.0,0.001638]
[1727836781908,0.13812625,61816.0,61815.0,0.001638]
[1727836782338,0.129416,61816.0,61815.0,0.001638]
[1727836783390,0.25882,61819.0,61815.0,0.001638]
[1727836783596,0.129415,61817.0,61815.0,0.001638]
[1727836783804,0.132416,61816.0,61815.0,0.001638]
[1727836784014,0.003,61816.0,61815.0,0.001638]
[1727836784222,0.129416,61816.0,61815.0,0.001638]
[1727836785301,0.303016,61816.0,61815.0,0.001638]
[1727836785509,0.305016,61816.0,61815.0,0.001638]
[1727836789194,0.93615536,61816.0,61815.0,0.001638]
[1727836789480,0.75464636,61816.0,61815.0,0.001638]
[1727836789916,0.75464636,61816.0,61810.0,0.001638]
[1727836789917,0.47222908,61811.0,61810.0,0.001638]
[1727836790138,0.47222908,61811.0,61807.0,0.001638]
[1727836790139,0.229433,61808.0,61807.0,0.001638]
[1727836790356,0.129456,61797.0,61795.0,0.001638]
[1727836790536,0.47225908,61797.0,61795.0,0.001638]
[1727836790796,0.49762805,61797.0,61795.0,0.001638]
[1727836791012,0.129458,61796.0,61795.0,0.001638]
[1727836793641,1.0611003,61796.0,61795.0,0.001638]
[1727836793874,0.6099283,61796.0,61795.0,0.002638]
[1727836794198,0.6039283,61796.0,61795.0,0.002638]
[1727836794555,0.6039283,61796.0,61795.0,0.001638]
[1727836794556,0.6049283,61796.0,61795.0,0.001638]
[1727836794760,0.7049283,61796.0,61795.0,0.001638]
[1727836794960,0.7373015,61796.0,61795.0,0.002638]
[1727836795287,0.90650458,61796.0,61795.0,0.002638]
[1727836795503,0.6034255,61796.0,61795.0,0.002638]
[1727836795785,0.73110558,61796.0,61795.0,0.002638]
[1727836796011,0.74310558,61796.0,61795.0,0.002638]
[1727836796196,0.70862058,61796.0,61795.0,0.002638]
[1727836796403,0.66424738,61796.0,61795.0,0.001638]
[1727836796626,0.67624738,61796.0,61795.0,0.001638]
[1727836796832,0.68824738,61796.0,61795.0,0.001638]
[1727836799353,0.7136203,61796.0,61795.0,0.001638]
[1727836800975,0.6741603,61796.0,61795.0,0.001638]
[1727836801801,0.579799,61796.0,61795.0,0.001638]
[1727836802007,0.253458,61796.0,61795.0,0.001638]
[1727836802222,0.67982508,61796.0,61795.0,0.001638]
[1727836802849,0.65582508,61796.0,61795.0,0.001638]
[1727836803291,0.40866108,61796.0,61795.0,0.001638]
[1727836803696,0.41966108,61796.0,61795.0,0.001638]
[1727836804291,0.53076929,61796.0,61795.0,0.001638]
[1727836805087,0.51976929,61796.0,61795.0,0.001638]
[1727836805539,0.53076929,61796.0,61795.0,0.001638]
[1727836805850,0.250458,61796.0,61795.0,0.001638]
[1727836806064,0.41966108,61796.0,61795.0,0.001638]
[1727836806487,0.44503373,61796.0,61795.0,0.001638]
[1727836806696,0.41966108,61796.0,61795.0,0.001638]
[1727836808451,0.250458,61796.0,61795.0,0.001638]
[1727836808655,0.31966108,61796.0,61795.0,0.001638]
[1727836809298,0.3450339,61796.0,61795.0,0.001638]
[1727836811604,0.3450339,61796.0,61795.0,0.003568]
[1727836811605,0.04637282,61796.0,61795.0,0.003568]
[1727836811815,0.021,61796.0,61795.0,0.133028]
[1727836812435,0.01,61796.0,61795.0,0.133028]
[1727836812642,0.12945,61800.0,61796.0,0.129456]
[1727836814095,0.12945,61800.0,61795.0,0.003568]
[1727836814096,0.16920308,61800.0,61795.0,0.003568]
[1727836814315,0.129458,61796.0,61795.0,0.003568]
[1727836814530,0.29866108,61796.0,61795.0,0.003568]
[1727836816018,0.30466108,61796.0,61795.0,0.003568]
[1727836816433,0.29866108,61796.0,61795.0,0.003568]
[1727836816659,0.31366108,61796.0,61795.0,0.003568]
[1727836816867,0.30666108,61796.0,61795.0,0.003568]